{"text_format":"1","workbook":"xlsx","n_sheets":5,"sheets":["Data Set","LEN Function","LEN & Other Functions","VBA","Count Text"],"not_rendered":{"charts":0,"images":0,"macros":1,"external_links":0,"defined_names":0,"comments":0,"pivot_tables":0},"unopened":[],"bounds":{"document_bytes":16777216,"sheet_cells":100000,"rows_first":2000,"rows_last":500,"rows_between":2000,"halvings":0,"cell_chars":16384,"cell_head_chars":4096},"cells_cut":0,"cells_raw":0,"read":"whole","date_system":"1900"}

{"sheet":"Data Set","index":0,"n_rows":9,"n_cols":3,"rows_kept":9,"cut":false,"hidden":false,"merged":[[1,1,1,2]]}
[]
[null,"Count Numbers In A Cell in Excel"]
[]
[null,"Name","Amount"]
[null,"Jessica",864590]
[null,"Henderson",456]
[null,"Aaron",85]
[null,"Mitchel",1236544]
[null,"John",3644]

{"sheet":"LEN Function","index":1,"n_rows":9,"n_cols":4,"rows_kept":9,"cut":false,"hidden":false,"merged":[[1,1,1,3]]}
[]
[null,"Use of LEN Function"]
[]
[null,"Name","Amount","Numbers"]
[null,"Jessica",864590,{"$f":"LEN(C5)","v":6}]
[null,"Henderson",456,{"$f":"LEN(C6)","v":3}]
[null,"Aaron",85,2]
[null,"Mitchel",1236544,7]
[null,"John",3644,4]

{"sheet":"LEN & Other Functions","index":2,"n_rows":9,"n_cols":4,"rows_kept":9,"cut":false,"hidden":false,"merged":[[1,1,1,3]]}
[]
[null,"Combination of LEN Function with Others"]
[]
[null,"Name","Amount","Numbers"]
[null,"Jessica",864590,{"$f":"SUM(LEN(C5)-LEN(SUBSTITUTE(C5,{1,2,3,4,5,6,7,8,9,0},)))","v":6}]
[null,"Henderson",456,{"$f":"SUM(LEN(C6)-LEN(SUBSTITUTE(C6,{1,2,3,4,5,6,7,8,9,0},)))","v":3}]
[null,"Aaron",85,{"$f":"SUM(LEN(C7)-LEN(SUBSTITUTE(C7,{1,2,3,4,5,6,7,8,9,0},)))","v":2}]
[null,"Mitchel",1236544,{"$f":"SUM(LEN(C8)-LEN(SUBSTITUTE(C8,{1,2,3,4,5,6,7,8,9,0},)))","v":7}]
[null,"John",3644,{"$f":"SUM(LEN(C9)-LEN(SUBSTITUTE(C9,{1,2,3,4,5,6,7,8,9,0},)))","v":4}]

{"sheet":"VBA","index":3,"n_rows":9,"n_cols":4,"rows_kept":9,"cut":false,"hidden":false,"merged":[[1,1,1,3]]}
[]
[null,"VBA & MACROS"]
[]
[null,"Name","Amount","Numbers"]
[null,"Jessica","aa444",{"$f":"Letters_Numbers(C5)","v":"3N"}]
[null,"Henderson",456,{"$f":"Letters_Numbers(C6)","v":"3N"}]
[null,"Aaron","g85",{"$f":"Letters_Numbers(C7)","v":"2N"}]
[null,"Mitchel",1236544,{"$f":"Letters_Numbers(C8)","v":"7N"}]
[null,"John",3644,{"$f":"Letters_Numbers(C9)","v":"4N"}]

{"sheet":"Count Text","index":4,"n_rows":9,"n_cols":4,"rows_kept":9,"cut":false,"hidden":false,"merged":[[1,1,1,3]]}
[]
[null,"LEN Function to Count Text Only"]
[]
[null,"Name","Amount","Numbers"]
[null,"Jessica","864590s",{"$f":"LEN(SUBSTITUTE(SUBSTITUTE(SUBSTITUTE(SUBSTITUTE(SUBSTITUTE(SUBSTITUTE(SUBSTITUTE(SUBSTITUTE(SUBSTITUTE(SUBSTITUTE(C5,0,\"\"),1,\"\"),2,\"\"),3,\"\"),4,\"\"),5,\"\"),6,\"\"),7,\"\"),8,\"\"),9,\"\"))","v":1}]
[null,"Henderson",";df41",{"$f":"LEN(SUBSTITUTE(SUBSTITUTE(SUBSTITUTE(SUBSTITUTE(SUBSTITUTE(SUBSTITUTE(SUBSTITUTE(SUBSTITUTE(SUBSTITUTE(SUBSTITUTE(C6,0,\"\"),1,\"\"),2,\"\"),3,\"\"),4,\"\"),5,\"\"),6,\"\"),7,\"\"),8,\"\"),9,\"\"))","v":3}]
[null,"Aaron","#4k22",2]
[null,"Mitchel",1236544,0]
[null,"John",3644,0]